[Event "44th Chess Olympiad Women 2022"]
[Site "Chennai"]
[Date "2022.07.30"]
[Round "2.58"]
[White "Pinder, Trinity"]
[Black "Park, Sunwoo"]
[Result "0-1"]
[ECO "D31"]
[WhiteElo "1183"]
[BlackElo "1773"]
[Annotator "NA COMBH"]
[PlyCount "78"]
[EventDate "2022.07.29"]
[EventType "team-tourn"]
[EventCountry "IND"]
[SourceTitle "playchess.com"]
[Source "ChessBase"]
[SourceQuality "1"]
[WhiteTeam "Bahamas"]
[BlackTeam "Korea"]
[WhiteTeamCountry "BAH"]
[BlackTeamCountry "KOR"]
[TimeControl "40/5400+30:1800+30"]

1. d4 {[%emt 0:00:06]} d5 {[%emt 0:00:13]} 2. c4 {[%emt 0:00:09]} e6 {[%emt 0:00:03]} 3. Nf3 {[%emt 0:00:28]} c6 {[%emt 0:00:29]} 4. Nc3 {[%emt 0:00:24]} dxc4 {[%emt 0:00:59]} 5. e3 {[%emt 0:02:27]} b5 {[%emt 0:04:20]} 6. a4 {[%emt 0:12:58]} Bb4 {[%emt 0:01:11]} 7. Bd2 {[%emt 0:01:37]} Bd7 {[%emt 0:12:33]} 8. b3 {[%emt 0:03:35]} Qe7 {[%emt 0:10:31]} 9. bxc4 {[%emt 0:01:55]} Bxc3 {[%emt 0:00:17]} 10. Bxc3 {[%emt 0:00:48]} b4 {[%emt 0:00:42]} 11. Bb2 {[%emt 0:03:02]} Nf6 {[%emt 0:02:14]} 12. Bd3 {[%emt 0:01:01]} O-O {[%emt 0:01:41]} 13. O-O {[%emt 0:01:24]} a5 {[%emt 0:11:59]} 14. e4 {[%emt 0:05:35]} Rd8 {[%emt 0:09:25]} 15. Re1 {[%emt 0:00:53]} Na6 {[%emt 0:02:20]} 16. e5 {[%emt 0:05:38]} Nh5 {[%emt 0:04:43]} 17. Qc2 {[%emt 0:03:21]} g6 {[%emt 0:00:26]} 18. Be4 {[%emt 0:02:09]} Rab8 {[%emt 0:02:41]} 19. c5 {[%emt 0:09:03]} b3 {[%emt 0:07:14]} 20. Qd3 {[%emt 0:01:11]} Bc8 {[%emt 0:04:14]} 21. Qc3 {[%emt 0:03:27]} Nb4 {[%emt 0:05:24]} 22. Qxb3 {[%emt 0:03:56]} Ba6 {[%emt 0:00:25]} 23. Qc3 {[%emt 0:01:52]} Nf4 {[%emt 0:00:22]} 24. Qd2 {[%emt 0:08:02]} Nfd3 {[%emt 0:01:05]} 25. Bxd3 {[%emt 0:03:42]} Nxd3 {[%emt 0:00:10]} 26. Reb1 {[%emt 0:02:41]} Qb7 {[%emt 0:06:21]} 27. Qh6 {[%emt 0:06:56]} Nxb2 {[%emt 0:05:44]} 28. Ng5 {[%emt 0:03:28]} f5 {[%emt 0:05:55]} 29. exf6 {[%emt 0:00:24]} Rd7 {[%emt 0:00:08]} 30. Re1 {[%emt 0:01:39]} Nd3 {[%emt 0:00:27]} 31. Red1 {[%emt 0:01:25]} Nf4 {[%emt 0:00:43]} 32. f7+ {[%emt 0:00:26]} Rxf7 {[%emt 0:00:10]} 33. Nxf7 {[%emt 0:00:28]} Qxf7 {[%emt 0:00:02]} 34. Rab1 {[%emt 0:00:39]} Rf8 {[%emt 0:00:43]} 35. Rb6 {[%emt 0:00:46]} Be2 {[%emt 0:00:32]} 36. Rdb1 {[%emt 0:00:45]} Nh3+ {[%emt 0:00:23]} 37. Qxh3 {[%emt 0:00:38]} Qxf2+ {[%emt 0:00:05]} 38. Kh1 {[%emt 0:00:27]} Qf1+ {[%emt 0:00:04]} 39. Rxf1 {[%emt 0:00:08]} Rxf1# {[%emt 0:00:04]} 0-1

[Event "44th Chess Olympiad Women 2022"]
[Site "Chennai"]
[Date "2022.07.30"]
[Round "2.59"]
[White "Mongeli, Sasha"]
[Black "Magne Kouokam Sylviane"]
[Result "1-0"]
[ECO "A53"]
[WhiteElo "1672"]
[BlackElo "1317"]
[Annotator "NA RC COMBH"]
[PlyCount "83"]
[EventDate "2022.07.29"]
[EventType "team-tourn"]
[EventCountry "IND"]
[SourceTitle "playchess.com"]
[Source "ChessBase"]
[SourceQuality "1"]
[WhiteTeam "Kenya"]
[BlackTeam "CMR"]
[WhiteTeamCountry "KEN"]
[TimeControl "40/5400+30:1800+30"]

1. Nf3 {[%emt 0:00:10]} Nf6 {[%emt 0:00:10]} 2. d4 {[%emt 0:00:31]} d6 {[%emt 0:00:17]} 3. c4 {[%emt 0:00:39]} b6 {[%emt 0:00:22]} 4. g3 {[%emt 0:00:31]} g6 {[%emt 0:00:18]} 5. Bg2 {[%emt 0:00:24]} Bb7 {[%emt 0:00:11]} 6. Nc3 {[%emt 0:01:04]} d5 {[%emt 0:01:21]} 7. Ne5 {[%emt 0:01:53]} e6 {[%emt 0:01:54]} 8. Bg5 {[%emt 0:04:24]} Bg7 {[%emt 0:00:49]} 9. Qa4+ {[%emt 0:02:05]} c6 {[%emt 0:00:59]} 10. cxd5 {[%emt 0:01:42]} exd5 {[%emt 0:01:58]} 11. Nxd5 {[%emt 0:03:50]} b5 {[%emt 0:00:31]} 12. Nxf6+ {[%emt 0:00:32]} Bxf6 {[%emt 0:00:09]} 13. Bxf6 {[%emt 0:00:25]} Qxf6 {[%emt 0:00:09]} 14. Qa3 {[%emt 0:01:51]} Qe6 {[%emt 0:02:00]} 15. e3 {[%emt 0:03:04]} Na6 {[%emt 0:03:08]} 16. O-O {[%emt 0:01:43]} Rc8 {[%emt 0:00:44]} 17. Rfc1 {[%emt 0:01:44]} f6 {[%emt 0:00:45]} 18. Nxc6 {[%emt 0:03:19]} Bxc6 {[%emt 0:02:09]} 19. Qxa6 {[%emt 0:00:10]} Bd7 {[%emt 0:00:44]} 20. Rxc8+ {[%emt 0:02:25]} Bxc8 {[%emt 0:00:07]} 21. Qxb5+ {[%emt 0:00:19]} Ke7 {[%emt 0:01:30]} 22. Qc5+ {[%emt 0:00:38]} Qd6 {[%emt 0:01:36]} 23. Qxa7+ {[%emt 0:00:16]} Bd7 {[%emt 0:00:30]} 24. Rc1 {[%emt 0:01:16]} Rd8 {[%emt 0:07:27]} 25. Rc7 {[%emt 0:03:05]} Kf8 {[%emt 0:05:08]} 26. b4 {[%emt 0:03:16]} Qe6 {[%emt 0:36:07]} 27. Qc5+ {[%emt 0:00:43]} Kg7 {[%emt 0:04:45]} 28. Bd5 {[%emt 0:00:44]} Qe8 {[%emt 0:04:50]} 29. Bc6 {[%emt 0:01:19]} Kh8 {[%emt 0:00:15]} 30. Rxd7 {[%emt 0:00:27]} Rxd7 {[%emt 0:00:30]} 31. Qb5 {[%emt 0:00:18]} Qd8 {[%emt 0:03:53]} 32. Bxd7 {[%emt 0:00:10]} Kg7 {[%emt 0:00:43]} 33. a4 {[%emt 0:00:27]} Qc7 {[%emt 0:00:26]} 34. Bc6 {[%emt 0:00:21]} Kh6 {[%emt 0:00:23]} 35. a5 {[%emt 0:00:18]} f5 {[%emt 0:00:15]} 36. a6 {[%emt 0:00:38]} Kg5 {[%emt 0:03:20]} 37. Qc5 {[%emt 0:00:21]} Qf7 {[%emt 0:02:32]} 38. a7 {[%emt 0:00:39]} Qa2 {[%emt 0:01:55]} 39. a8=Q {[%emt 0:00:21]} Qb1+ {[%emt 0:07:11]} 40. Kg2 {[%emt 0:00:07]} Qd1 {[%emt 0:00:44]} 41. Qe7+ {[%emt 0:30:34]} Kh6 {[%emt 0:30:40]} 42. Qaf8+ {[%emt 0:00:20]} 1-0

[Event "44th Chess Olympiad Women 2022"]
[Site "Chennai"]
[Date "2022.07.30"]
[Round "2.61"]
[White "Lohani, Sujana"]
[Black "Roberts, Tallulah"]
[Result "1-0"]
[ECO "D27"]
[WhiteElo "1697"]
[BlackElo "1536"]
[Annotator "NA COMBH"]
[PlyCount "77"]
[EventDate "2022.07.29"]
[EventType "team-tourn"]
[EventCountry "IND"]
[SourceTitle "playchess.com"]
[Source "ChessBase"]
[SourceQuality "1"]
[WhiteTeam "Nepal"]
[BlackTeam "Channel Islands"]
[WhiteTeamCountry "NEP"]
[BlackTeamCountry "JCI"]
[TimeControl "40/5400+30:1800+30"]

1. d4 {[%emt 0:00:05]} d5 {[%emt 0:00:01]} 2. Nf3 {[%emt 0:00:06]} Nf6 {[%emt 0:00:01]} 3. c4 {[%emt 0:00:16]} dxc4 {[%emt 0:00:03]} 4. e3 {[%emt 0:01:03]} e6 {[%emt 0:00:04]} 5. Bxc4 {[%emt 0:00:31]} c5 {[%emt 0:00:07]} 6. O-O {[%emt 0:00:58]} a6 {[%emt 0:00:04]} 7. a4 {[%emt 0:04:14]} Nc6 {[%emt 0:00:25]} 8. Nc3 {[%emt 0:02:23]} b6 {[%emt 0:00:58]} 9. d5 {[%emt 0:06:27]} exd5 {[%emt 0:05:08]} 10. Nxd5 {[%emt 0:00:35]} Bb7 {[%emt 0:06:00]} 11. e4 {[%emt 0:05:59]} Be7 {[%emt 0:08:28]} 12. Re1 {[%emt 0:07:41]} O-O {[%emt 0:04:00]} 13. Bf4 {[%emt 0:05:33]} Rc8 {[%emt 0:10:36]} 14. Qe2 {[%emt 0:02:53]} Nd4 {[%emt 0:14:26]} 15. Nxd4 {[%emt 0:05:35]} cxd4 {[%emt 0:00:04]} 16. Bxa6 {[%emt 0:03:22]} Bxa6 {[%emt 0:02:04]} 17. Nxe7+ {[%emt 0:08:01]} Qxe7 {[%emt 0:00:55]} 18. Qxa6 {[%emt 0:00:15]} Qb4 {[%emt 0:07:29]} 19. Qb5 {[%emt 0:10:49]} Qxb5 {[%emt 0:09:29]} 20. axb5 {[%emt 0:00:17]} Rfd8 {[%emt 0:03:58]} 21. Rac1 {[%emt 0:15:25]} Rxc1 {[%emt 0:02:17]} 22. Bxc1 {[%emt 0:01:24]} Rc8 {[%emt 0:05:18]} 23. f3 {[%emt 0:02:22]} Rc2 {[%emt 0:04:32]} 24. Rd1 {[%emt 0:01:22]} h6 {[%emt 0:06:08]} 25. b4 {[%emt 0:02:08]} Kf8 {[%emt 0:03:33]} 26. Bf4 {[%emt 0:02:06]} Rc4 {[%emt 0:03:00]} 27. Rc1 {[%emt 0:03:04]} Rc3 {[%emt 0:01:08]} 28. Kf1 {[%emt 0:01:43]} Nd7 {[%emt 0:01:16]} 29. Rxc3 {[%emt 0:01:38]} dxc3 {[%emt 0:00:02]} 30. Ke2 {[%emt 0:00:14]} g5 {[%emt 0:00:30]} 31. Bd6+ {[%emt 0:00:37]} Ke8 {[%emt 0:00:50]} 32. Kd3 {[%emt 0:00:23]} c2 {[%emt 0:00:31]} 33. Kxc2 {[%emt 0:00:06]} Kd8 {[%emt 0:00:40]} 34. Kd3 {[%emt 0:01:04]} Nf6 {[%emt 0:00:09]} 35. Kd4 {[%emt 0:00:50]} Kd7 {[%emt 0:00:56]} 36. Be5 {[%emt 0:00:41]} Nh5 {[%emt 0:01:03]} 37. g4 {[%emt 0:00:31]} Nf4 {[%emt 0:00:10]} 38. Bxf4 {[%emt 0:00:07]} gxf4 {[%emt 0:00:06]} 39. Ke5 {[%emt 0:00:16]} 1-0

[Event "44th Chess Olympiad Women 2022"]
[Site "Chennai"]
[Date "2022.07.30"]
[Round "2.62"]
[White "Almusawi, Maram"]
[Black "De la Riva Real, Ariadna"]
[Result "0-1"]
[ECO "D30"]
[WhiteElo "1349"]
[BlackElo "1649"]
[Annotator "NA COMBH"]
[PlyCount "80"]
[EventDate "2022.07.29"]
[EventType "team-tourn"]
[EventCountry "IND"]
[SourceTitle "playchess.com"]
[Source "ChessBase"]
[SourceQuality "1"]
[WhiteTeam "Brunei"]
[BlackTeam "Andorra"]
[WhiteTeamCountry "BRN"]
[BlackTeamCountry "AND"]
[TimeControl "40/5400+30:1800+30"]

1. d4 {[%emt 0:00:04]} d5 {[%emt 0:00:07]} 2. Nf3 {[%emt 0:00:18]} Nf6 {[%emt 0:00:08]} 3. c4 {[%emt 0:00:45]} c6 {[%emt 0:00:42]} 4. e3 {[%emt 0:01:31]} e6 {[%emt 0:02:06]} 5. Bd3 {[%emt 0:02:02]} Be7 {[%emt 0:02:54]} 6. O-O {[%emt 0:01:04]} Nbd7 {[%emt 0:01:03]} 7. a3 {[%emt 0:01:42]} c5 {[%emt 0:07:05]} 8. Nc3 {[%emt 0:03:45]} a6 {[%emt 0:02:52]} 9. Re1 {[%emt 0:01:26]} O-O {[%emt 0:04:38]} 10. e4 {[%emt 0:04:17]} cxd4 {[%emt 0:02:22]} 11. Nxd4 {[%emt 0:00:59]} Bc5 {[%emt 0:01:48]} 12. Nf3 {[%emt 0:05:40]} Qb6 {[%emt 0:07:38]} 13. Be3 {[%emt 0:03:44]} Bxe3 {[%emt 0:05:17]} 14. Rxe3 {[%emt 0:01:52]} Ng4 {[%emt 0:01:50]} 15. Re2 {[%emt 0:00:52]} dxe4 {[%emt 0:07:42]} 16. Bxe4 {[%emt 0:04:07]} f5 {[%emt 0:04:08]} 17. Bd3 {[%emt 0:01:06]} e5 {[%emt 0:02:21]} 18. Nd5 {[%emt 0:02:42]} Qd8 {[%emt 0:02:40]} 19. Bc2 {[%emt 0:02:17]} e4 {[%emt 0:01:17]} 20. Nd4 {[%emt 0:02:06]} Nde5 {[%emt 0:03:00]} 21. h3 {[%emt 0:02:15]} Nh6 {[%emt 0:00:41]} 22. Bb3 {[%emt 0:01:21]} Kh8 {[%emt 0:01:00]} 23. c5 {[%emt 0:00:36]} Qg5 {[%emt 0:01:53]} 24. Re3 {[%emt 0:04:47]} f4 {[%emt 0:01:35]} 25. Rxe4 {[%emt 0:01:30]} Bxh3 {[%emt 0:00:16]} 26. g4 {[%emt 0:16:56]} fxg3 {[%emt 0:01:01]} 27. f4 {[%emt 0:00:33]} Qh4 {[%emt 0:11:44]} 28. Nf3 {[%emt 0:05:05]} Nxf3+ {[%emt 0:01:13]} 29. Qxf3 {[%emt 0:00:11]} Bf5 {[%emt 0:02:03]} 30. Re2 {[%emt 0:00:44]} Bg4 {[%emt 0:00:16]} 31. Qd3 {[%emt 0:04:25]} Bxe2 {[%emt 0:00:30]} 32. Qxe2 {[%emt 0:00:16]} Ng4 {[%emt 0:01:12]} 33. Qf3 {[%emt 0:09:55]} Qh2+ {[%emt 0:05:07]} 34. Kf1 {[%emt 0:00:13]} Ne5 {[%emt 0:01:34]} 35. Qe3 {[%emt 0:02:00]} Qh1+ {[%emt 0:00:23]} 36. Ke2 {[%emt 0:01:09]} Qxa1 {[%emt 0:00:39]} 37. Qxg3 {[%emt 0:00:56]} Qxb2+ {[%emt 0:00:24]} 38. Ke1 {[%emt 0:01:35]} Ng6 {[%emt 0:00:34]} 39. Bc4 {[%emt 0:00:50]} Qc1+ {[%emt 0:00:18]} 40. Kf2 {[%emt 0:00:33]} Qxc4 {[%emt 0:00:16]} 0-1

[Event "44th Chess Olympiad Women 2022"]
[Site "Chennai"]
[Date "2022.07.30"]
[Round "2.63"]
[White "Chuemsakul, Sarocha"]
[Black "Abigail Karyah"]
[Result "1-0"]
[ECO "D02"]
[WhiteElo "1684"]
[BlackElo "1455"]
[Annotator "NA RC COMBH"]
[PlyCount "97"]
[EventDate "2022.07.29"]
[EventType "team-tourn"]
[EventCountry "IND"]
[SourceTitle "playchess.com"]
[Source "ChessBase"]
[SourceQuality "1"]
[WhiteTeam "Thailand"]
[BlackTeam "Liberia"]
[WhiteTeamCountry "THA"]
[BlackTeamCountry "LBR"]
[TimeControl "40/5400+30:1800+30"]

1. Nf3 {[%emt 0:00:03]} Nf6 {[%emt 0:00:22]} 2. g3 {[%emt 0:00:11]} Nc6 {[%emt 0:00:08]} 3. d4 {[%emt 0:00:23]} d5 {[%emt 0:00:18]} 4. Bg2 {[%emt 0:00:10]} e6 {[%emt 0:00:14]} 5. O-O {[%emt 0:00:39]} b6 {[%emt 0:00:17]} 6. c4 {[%emt 0:00:59]} Bb7 {[%emt 0:00:41]} 7. Qa4 {[%emt 0:03:40]} Qd7 {[%emt 0:00:48]} 8. Nc3 {[%emt 0:01:01]} Be7 {[%emt 0:02:44]} 9. Rd1 {[%emt 0:06:11]} Rd8 {[%emt 0:01:36]} 10. cxd5 {[%emt 0:06:45]} Nxd5 {[%emt 0:01:22]} 11. Nxd5 {[%emt 0:01:12]} exd5 {[%emt 0:00:27]} 12. Bf4 {[%emt 0:00:25]} a5 {[%emt 0:04:13]} 13. Rac1 {[%emt 0:01:47]} O-O {[%emt 0:00:59]} 14. a3 {[%emt 0:02:27]} Bd6 {[%emt 0:01:22]} 15. e3 {[%emt 0:07:16]} Bxf4 {[%emt 0:00:59]} 16. exf4 {[%emt 0:00:13]} Ne5 {[%emt 0:00:37]} 17. Qb3 {[%emt 0:13:19]} Nxf3+ {[%emt 0:00:59]} 18. Bxf3 {[%emt 0:00:18]} Rc8 {[%emt 0:00:54]} 19. Re1 {[%emt 0:01:21]} Rfd8 {[%emt 0:02:10]} 20. Re3 {[%emt 0:07:30]} Ba6 {[%emt 0:04:23]} 21. Be2 {[%emt 0:14:11]} Bxe2 {[%emt 0:00:33]} 22. Rxe2 {[%emt 0:00:01]} Qd6 {[%emt 0:00:13]} 23. Qb5 {[%emt 0:05:49]} Kf8 {[%emt 0:01:40]} 24. Rc6 {[%emt 0:01:12]} Qd7 {[%emt 0:00:56]} 25. Kg2 {[%emt 0:02:42]} Re8 {[%emt 0:13:02]} 26. Re5 {[%emt 0:07:25]} Rcd8 {[%emt 0:01:29]} 27. Qa4 {[%emt 0:05:23]} g6 {[%emt 0:05:57]} 28. Qc2 {[%emt 0:00:55]} Rc8 {[%emt 0:00:24]} 29. b4 {[%emt 0:01:15]} axb4 {[%emt 0:01:48]} 30. axb4 {[%emt 0:00:02]} Re7 {[%emt 0:01:00]} 31. b5 {[%emt 0:01:22]} Rce8 {[%emt 0:02:02]} 32. h3 {[%emt 0:02:55]} Kg7 {[%emt 0:00:20]} 33. Qc3 {[%emt 0:05:07]} f6 {[%emt 0:01:29]} 34. Rxc7 {[%emt 0:02:48]} Qxc7 {[%emt 0:00:21]} 35. Qxc7 {[%emt 0:00:01]} Rxc7 {[%emt 0:00:17]} 36. Rxe8 {[%emt 0:00:02]} Rd7 {[%emt 0:02:30]} 37. Re6 {[%emt 0:00:53]} Kf7 {[%emt 0:02:11]} 38. Rxb6 {[%emt 0:00:24]} Ke7 {[%emt 0:00:12]} 39. Rc6 {[%emt 0:01:05]} Rb7 {[%emt 0:00:44]} 40. b6 {[%emt 0:00:34]} f5 {[%emt 0:00:20]} 41. g4 {[%emt 0:30:30]} fxg4 {[%emt 0:30:11]} 42. hxg4 {[%emt 0:00:01]} Kd7 {[%emt 0:00:28]} 43. Rc7+ {[%emt 0:00:00]} Rxc7 {[%emt 0:00:00]} 44. bxc7 {[%emt 0:00:00]} Kxc7 {[%emt 0:00:00]} 45. Kg3 {[%emt 0:00:00]} Kd7 {[%emt 0:00:00]} 46. Kh4 {[%emt 0:00:00]} h6 {[%emt 0:00:00]} 47. g5 {[%emt 0:00:00]} Ke6 {[%emt 0:00:00]} 48. gxh6 {[%emt 0:00:00]} Kf6 {[%emt 0:00:00]} 49. Kg4 {[%emt 0:00:00]} 1-0

[Event "44th Chess Olympiad Women 2022"]
[Site "Chennai"]
[Date "2022.07.30"]
[Round "2.65"]
[White "Cadeau, Merisena"]
[Black "Bah, Mariama Djelo"]
[Result "1-0"]
[ECO "C55"]
[WhiteElo "1439"]
[BlackElo "1008"]
[Annotator "NA RC COMBH"]
[PlyCount "79"]
[EventDate "2022.07.29"]
[EventType "team-tourn"]
[EventCountry "IND"]
[SourceTitle "playchess.com"]
[Source "ChessBase"]
[SourceQuality "1"]
[WhiteTeam "Haiti"]
[BlackTeam "SLE"]
[WhiteTeamCountry "HAI"]
[TimeControl "40/5400+30:1800+30"]

1. e4 {[%emt 0:00:02]} e5 {[%emt 0:00:09]} 2. Nf3 {[%emt 0:00:21]} Nc6 {[%emt 0:00:15]} 3. Bc4 {[%emt 0:00:07]} Nf6 {[%emt 0:00:24]} 4. Nc3 {[%emt 0:00:15]} d5 {[%emt 0:04:21]} 5. exd5 {[%emt 0:00:50]} Nxd5 {[%emt 0:00:24]} 6. Bxd5 {[%emt 0:00:26]} Bb4 {[%emt 0:02:02]} 7. Bxc6+ {[%emt 0:00:38]} bxc6 {[%emt 0:00:27]} 8. Nxe5 {[%emt 0:01:03]} O-O {[%emt 0:00:34]} 9. O-O {[%emt 0:00:11]} Bd7 {[%emt 0:01:55]} 10. Qf3 {[%emt 0:00:50]} Re8 {[%emt 0:00:59]} 11. Nxc6 {[%emt 0:00:25]} Bxc6 {[%emt 0:04:23]} 12. Qxc6 {[%emt 0:00:48]} Qe7 {[%emt 0:03:28]} 13. d4 {[%emt 0:00:59]} h6 {[%emt 0:07:00]} 14. Bf4 {[%emt 0:01:02]} Rac8 {[%emt 0:02:13]} 15. Nd5 {[%emt 0:00:16]} Qe6 {[%emt 0:05:41]} 16. Qxe6 {[%emt 0:00:19]} Rxe6 {[%emt 0:00:53]} 17. Nxb4 {[%emt 0:00:57]} Rce8 {[%emt 0:03:31]} 18. Nd5 {[%emt 0:00:27]} c6 {[%emt 0:04:06]} 19. Nc7 {[%emt 0:00:12]} Re4 {[%emt 0:10:48]} 20. Nxe8 {[%emt 0:01:02]} Rxe8 {[%emt 0:01:46]} 21. Rfe1 {[%emt 0:00:24]} Ra8 {[%emt 0:00:53]} 22. Re7 {[%emt 0:00:23]} a5 {[%emt 0:00:31]} 23. Rae1 {[%emt 0:00:15]} a4 {[%emt 0:00:24]} 24. Re8+ {[%emt 0:00:58]} Rxe8 {[%emt 0:02:07]} 25. Rxe8+ {[%emt 0:02:20]} Kh7 {[%emt 0:00:28]} 26. b4 {[%emt 0:01:48]} a3 {[%emt 0:00:56]} 27. b5 {[%emt 0:00:57]} cxb5 {[%emt 0:00:15]} 28. d5 {[%emt 0:02:47]} b4 {[%emt 0:01:59]} 29. d6 {[%emt 0:03:45]} b3 {[%emt 0:00:19]} 30. cxb3 {[%emt 0:00:50]} g5 31. Bc1 {[%emt 0:00:08]} g4 {[%emt 0:02:48]} 32. d7 {[%emt 0:01:51]} f5 {[%emt 0:00:24]} 33. Re6 {[%emt 0:02:02]} f4 {[%emt 0:00:34]} 34. Bxf4 {[%emt 0:00:12]} h5 {[%emt 0:00:31]} 35. d8=Q {[%emt 0:03:28]} h4 {[%emt 0:00:24]} 36. Qxh4+ {[%emt 0:08:09]} Kg7 {[%emt 0:00:33]} 37. Qh6+ {[%emt 0:01:56]} Kf7 {[%emt 0:00:21]} 38. Qf6+ {[%emt 0:02:14]} Kg8 {[%emt 0:00:41]} 39. Re8+ {[%emt 0:00:17]} Kh7 {[%emt 0:00:31]} 40. Qh6# {[%emt 0:00:09]} 1-0

[Event "44th Chess Olympiad Women 2022"]
[Site "Chennai"]
[Date "2022.07.30"]
[Round "2.73"]
[White "Inthavong, Maly"]
[Black "Sewak, Aarti"]
[Result "0-1"]
[ECO "B00"]
[WhiteElo "1231"]
[BlackElo "1412"]
[Annotator "NA RC COMBH"]
[PlyCount "78"]
[EventDate "2022.07.29"]
[EventType "team-tourn"]
[EventCountry "IND"]
[SourceTitle "playchess.com"]
[Source "ChessBase"]
[SourceQuality "1"]
[WhiteTeam "Laos"]
[BlackTeam "Fiji"]
[WhiteTeamCountry "LAO"]
[BlackTeamCountry "FIJ"]
[TimeControl "40/5400+30:1800+30"]

1. e4 {[%emt 0:00:03]} Nc6 {[%emt 0:00:14]} 2. Bc4 {[%emt 0:00:43]} e6 {[%emt 0:00:42]} 3. Ne2 {[%emt 0:02:17]} Nf6 {[%emt 0:00:42]} 4. d3 {[%emt 0:00:51]} Be7 {[%emt 0:02:35]} 5. O-O {[%emt 0:00:48]} Ne5 {[%emt 0:00:15]} 6. Nd2 {[%emt 0:01:22]} d5 {[%emt 0:02:11]} 7. Bb3 {[%emt 0:01:14]} c6 {[%emt 0:01:49]} 8. f4 {[%emt 0:00:29]} Neg4 {[%emt 0:01:25]} 9. Nf3 {[%emt 0:01:59]} dxe4 {[%emt 0:01:56]} 10. Nfd4 {[%emt 0:04:45]} Bc5 {[%emt 0:00:49]} 11. c3 {[%emt 0:01:50]} Qc7 {[%emt 0:02:35]} 12. Ng3 {[%emt 0:02:12]} e5 {[%emt 0:02:58]} 13. fxe5 {[%emt 0:01:34]} Qxe5 {[%emt 0:01:24]} 14. Qe2 {[%emt 0:03:45]} Bxd4+ {[%emt 0:02:00]} 15. cxd4 {[%emt 0:01:05]} Qxd4+ {[%emt 0:00:31]} 16. Kh1 {[%emt 0:00:24]} e3 {[%emt 0:02:19]} 17. h3 {[%emt 0:05:10]} O-O {[%emt 0:01:25]} 18. hxg4 {[%emt 0:03:24]} Nxg4 {[%emt 0:01:01]} 19. Nf5 {[%emt 0:02:12]} Bxf5 {[%emt 0:02:43]} 20. Rxf5 {[%emt 0:01:00]} Rae8 {[%emt 0:01:53]} 21. g3 {[%emt 0:01:07]} Nf2+ {[%emt 0:02:10]} 22. Kg2 {[%emt 0:00:24]} Nxd3 {[%emt 0:02:05]} 23. Rb1 {[%emt 0:05:23]} Qe4+ {[%emt 0:00:20]} 24. Rf3 {[%emt 0:02:07]} Ne5 {[%emt 0:01:03]} 25. Bc2 {[%emt 0:00:10]} Qd5 {[%emt 0:03:07]} 26. Bb3 {[%emt 0:02:43]} Qe4 {[%emt 0:01:25]} 27. Bc2 {[%emt 0:04:31]} Qg4 {[%emt 0:01:13]} 28. Rxe3 {[%emt 0:00:39]} Qd4 {[%emt 0:05:36]} 29. Re4 {[%emt 0:03:07]} Qd5 {[%emt 0:01:21]} 30. Bb3 {[%emt 0:00:51]} Nc4 {[%emt 0:09:17]} 31. Bxc4 {[%emt 0:04:17]} Rxe4 {[%emt 0:02:11]} 32. Bxd5 {[%emt 0:00:21]} Rxe2+ {[%emt 0:00:24]} 33. Kf3 {[%emt 0:00:19]} Re1 {[%emt 0:02:41]} 34. Kf2 {[%emt 0:01:38]} Rfe8 {[%emt 0:00:43]} 35. Bf3 {[%emt 0:00:18]} f5 {[%emt 0:01:19]} 36. b3 {[%emt 0:01:10]} g5 {[%emt 0:00:34]} 37. Bh5 {[%emt 0:01:12]} R8e6 {[%emt 0:01:02]} 38. a4 {[%emt 0:01:28]} g4 {[%emt 0:00:19]} 39. Ra1 {[%emt 0:01:17]} R6e2# {[%emt 0:00:14]} 0-1